[Event "Elite Hotels Open 2024"]
[Site "Elite Stadshotellet, Kungsgatan 6, Vaxjo, Sweden"]
[Date "2024.02.10"]
[Round "6.6"]
[White "Kistrup, Nicolai"]
[Black "Silseth, Simon"]
[Result "1-0"]
[TimeControl "15 minutes + 5 seconds per move from move one (Round 1 - 4) / 90 minutes + 30 seconds per move from move one (Round 5 - 8)"]
[WhiteTitle "FM"]
[BlackTitle "FM"]
[WhiteFideId "1444816"]
[BlackFideId "1702440"]
[WhiteElo "2326"]
[BlackElo "2228"]

1. d4 {[%clk 01:30:55]} {[%emt 00:00:05]} d5 {[%clk 01:30:40]} {[%emt
00:00:20]} 2. c4 {[%clk 01:31:21]} {[%emt 00:00:05]} e6 {[%clk 01:31:03]}
{[%emt 00:00:06]} 3. Nf3 {[%clk 01:30:37]} {[%emt 00:01:15]} Nf6 {[%clk
01:30:57]} {[%emt 00:00:35]} 4. g3 {[%clk 01:31:02]} {[%emt 00:00:05]} dxc4
{[%clk 01:28:40]} {[%emt 00:02:47]} 5. Bg2 {[%clk 01:31:27]} {[%emt 00:00:05]}
c5 {[%clk 01:27:50]} {[%emt 00:01:20]} 6. O-O {[%clk 01:31:30]} {[%emt
00:00:28]} Nc6 {[%clk 01:27:24]} {[%emt 00:00:56]} 7. dxc5 {[%clk 01:28:02]}
{[%emt 00:03:58]} Qxd1 {[%clk 01:26:08]} {[%emt 00:01:46]} 8. Rxd1 {[%clk
01:28:27]} {[%emt 00:00:05]} Bxc5 {[%clk 01:25:47]} {[%emt 00:00:50]} 9. Nbd2
{[%clk 01:28:52]} {[%emt 00:00:05]} c3 {[%clk 01:19:53]} {[%emt 00:06:25]} 10.
bxc3 {[%clk 01:29:15]} {[%emt 00:00:06]} Bd7 {[%clk 01:15:30]} {[%emt
00:04:53]} 11. Rb1 {[%clk 01:20:34]} {[%emt 00:09:12]} O-O-O {[%clk 01:04:13]}
{[%emt 00:11:46]} 12. Nb3 {[%clk 01:17:54]} {[%emt 00:03:11]} Bb6 {[%clk
00:59:30]} {[%emt 00:05:13]} 13. Ng5 {[%clk 01:08:57]} {[%emt 00:09:27]} Be8
{[%clk 00:54:25]} {[%emt 00:05:34]} 14. Rxd8+ {[%clk 01:09:07]} {[%emt
00:00:21]} Nxd8 {[%clk 00:52:20]} {[%emt 00:02:34]} 15. c4 {[%clk 01:08:27]}
{[%emt 00:01:10]} h6 {[%clk 00:51:18]} {[%emt 00:01:31]} 16. Nf3 {[%clk
01:07:32]} {[%emt 00:01:26]} Ne4 {[%clk 00:46:03]} {[%emt 00:05:46]} 17. Nfd4
{[%clk 01:01:32]} {[%emt 00:06:30]} Nc5 {[%clk 00:43:47]} {[%emt 00:02:46]} 18.
Nb5 {[%clk 00:57:17]} {[%emt 00:04:45]} Nxb3 {[%clk 00:37:01]} {[%emt
00:07:16]} 19. axb3 {[%clk 00:53:49]} {[%emt 00:03:57]} Bc6 {[%clk 00:20:13]}
{[%emt 00:17:19]} 20. Bf4 {[%clk 00:37:53]} {[%emt 00:16:26]} Bxb5 {[%clk
00:16:22]} {[%emt 00:04:21]} 21. cxb5 {[%clk 00:38:01]} {[%emt 00:00:21]} f6
{[%clk 00:16:02]} {[%emt 00:00:49]} 22. Rc1+ {[%clk 00:33:56]} {[%emt
00:04:36]} Kd7 {[%clk 00:16:23]} {[%emt 00:00:10]} 23. Rd1+ {[%clk 00:34:00]}
{[%emt 00:00:26]} Kc8 {[%clk 00:15:03]} {[%emt 00:01:50]} 24. Bf3 {[%clk
00:28:31]} {[%emt 00:05:59]} g5 {[%clk 00:14:53]} {[%emt 00:00:40]} 25. Bd6
{[%clk 00:24:44]} {[%emt 00:04:17]} Rh7 {[%clk 00:14:42]} {[%emt 00:00:41]} 26.
Bh5 {[%clk 00:24:03]} {[%emt 00:01:12]} Rg7 {[%clk 00:10:45]} {[%emt 00:04:27]}
27. Bf8 {[%clk 00:23:48]} {[%emt 00:00:45]} Rg8 {[%clk 00:10:42]} {[%emt
00:00:32]} 28. Be7 {[%clk 00:23:55]} {[%emt 00:00:23]} f5 {[%clk 00:10:40]}
{[%emt 00:00:32]} 29. e3 {[%clk 00:20:02]} {[%emt 00:04:23]} Rg7 {[%clk
00:09:54]} {[%emt 00:01:16]} 30. Bf6 {[%clk 00:19:25]} {[%emt 00:01:08]} Rd7
{[%clk 00:10:01]} {[%emt 00:00:23]} 31. Rxd7 {[%clk 00:18:11]} {[%emt
00:01:42]} Kxd7 {[%clk 00:10:25]} {[%emt 00:00:06]} 32. Bg7 {[%clk 00:17:34]}
{[%emt 00:01:08]} g4 {[%clk 00:10:19]} {[%emt 00:00:36]} 33. Bxh6 {[%clk
00:17:44]} {[%emt 00:00:20]} Bc5 {[%clk 00:10:28]} {[%emt 00:00:21]} 34. Kg2
{[%clk 00:16:39]} {[%emt 00:01:35]} b6 {[%clk 00:10:51]} {[%emt 00:00:08]} 35.
f3 {[%clk 00:14:15]} {[%emt 00:02:53]} gxf3+ {[%clk 00:11:02]} {[%emt
00:00:19]} 36. Kxf3 {[%clk 00:14:30]} {[%emt 00:00:15]} Nb7 {[%clk 00:11:12]}
{[%emt 00:00:20]} 37. h4 {[%clk 00:14:34]} {[%emt 00:00:27]} Nd6 {[%clk
00:11:21]} {[%emt 00:00:20]} 38. Bg6 {[%clk 00:14:40]} {[%emt 00:00:24]} Nxb5
{[%clk 00:04:31]} {[%emt 00:07:20]} 39. h5 {[%clk 00:14:35]} {[%emt 00:00:35]}
Be7 {[%clk 00:03:30]} {[%emt 00:01:31]} 40. Bg7 {[%clk 00:14:05]} {[%emt
00:01:01]} Bg5 {[%clk 00:03:53]} {[%emt 00:00:07]} 41. h6 {[%clk 00:13:46]}
{[%emt 00:00:49]} Bxh6 {[%clk 00:04:17]} {[%emt 00:00:05]} 42. Bxh6 {[%clk
00:14:13]} {[%emt 00:00:03]} a5 {[%clk 00:04:15]} {[%emt 00:00:32]} 43. Kf4
{[%clk 00:13:41]} {[%emt 00:01:02]} Nd6 {[%clk 00:03:38]} {[%emt 00:01:07]} 44.
Bf8 {[%clk 00:12:56]} {[%emt 00:01:15]} 1-0

[Event "Elite Hotels Open 2024"]
[Site "Elite Stadshotellet, Kungsgatan 6, Vaxjo, Sweden"]
[Date "2024.02.10"]
[Round "6.7"]
[White "Muntean, Victor"]
[Black "Kristensen, Kaare Hove"]
[Result "1-0"]
[TimeControl "15 minutes + 5 seconds per move from move one (Round 1 - 4) / 90 minutes + 30 seconds per move from move one (Round 5 - 8)"]
[BlackTitle "IM"]
[WhiteFideId "1054414"]
[BlackFideId "1400940"]
[WhiteElo "2106"]
[BlackElo "2324"]

1. e4 {[%clk 01:30:58]} {[%emt 00:00:01]} c5 {[%clk 01:30:51]} {[%emt
00:00:09]} 2. c3 {[%clk 01:31:23]} {[%emt 00:00:06]} g6 {[%clk 01:31:12]}
{[%emt 00:00:09]} 3. d4 {[%clk 01:31:30]} {[%emt 00:00:23]} cxd4 {[%clk
01:31:23]} {[%emt 00:00:18]} 4. cxd4 {[%clk 01:31:54]} {[%emt 00:00:06]} d5
{[%clk 01:31:44]} {[%emt 00:00:10]} 5. e5 {[%clk 01:32:16]} {[%emt 00:00:08]}
f6 {[%clk 01:32:06]} {[%emt 00:00:07]} 6. Nf3 {[%clk 01:25:15]} {[%emt
00:07:31]} a6 {[%clk 01:32:15]} {[%emt 00:00:21]} 7. Nc3 {[%clk 01:24:07]}
{[%emt 00:01:38]} Nc6 {[%clk 01:31:11]} {[%emt 00:01:33]} 8. Qb3 {[%clk
01:13:40]} {[%emt 00:10:58]} e6 {[%clk 01:30:36]} {[%emt 00:01:05]} 9. Bd3
{[%clk 01:11:22]} {[%emt 00:02:48]} Bg7 {[%clk 01:28:14]} {[%emt 00:02:49]} 10.
O-O {[%clk 01:09:57]} {[%emt 00:01:57]} Nge7 {[%clk 01:21:40]} {[%emt
00:07:05]} 11. Re1 {[%clk 01:08:14]} {[%emt 00:02:14]} fxe5 {[%clk 01:13:49]}
{[%emt 00:08:21]} 12. dxe5 {[%clk 01:08:17]} {[%emt 00:00:27]} O-O {[%clk
01:12:44]} {[%emt 00:01:34]} 13. Bg5 {[%clk 01:05:30]} {[%emt 00:03:18]} Qc7
{[%clk 01:05:11]} {[%emt 00:08:03]} 14. Rac1 {[%clk 01:01:00]} {[%emt
00:05:00]} Rxf3 {[%clk 00:59:02]} {[%emt 00:06:39]} 15. gxf3 {[%clk 00:59:50]}
{[%emt 00:01:40]} Bxe5 {[%clk 00:59:22]} {[%emt 00:00:10]} 16. Qa4 {[%clk
00:53:36]} {[%emt 00:06:44]} d4 {[%clk 00:40:36]} {[%emt 00:19:16]} 17. Ne2
{[%clk 00:45:59]} {[%emt 00:08:06]} Nd5 {[%clk 00:37:46]} {[%emt 00:03:20]} 18.
Be4 {[%clk 00:42:06]} {[%emt 00:04:24]} Bd7 {[%clk 00:31:51]} {[%emt 00:06:25]}
19. Qb3 {[%clk 00:26:42]} {[%emt 00:15:54]} Qd6 {[%clk 00:21:38]} {[%emt
00:10:43]} 20. Qxb7 {[%clk 00:21:14]} {[%emt 00:05:58]} Ra7 {[%clk 00:17:45]}
{[%emt 00:04:23]} 21. Qb3 {[%clk 00:21:29]} {[%emt 00:00:14]} Bxh2+ {[%clk
00:17:54]} {[%emt 00:00:22]} 22. Kg2 {[%clk 00:21:17]} {[%emt 00:00:41]} Be5
{[%clk 00:17:55]} {[%emt 00:00:29]} 23. Rh1 {[%clk 00:18:15]} {[%emt 00:03:32]}
a5 {[%clk 00:16:50]} {[%emt 00:01:36]} 24. Rh4 {[%clk 00:15:13]} {[%emt
00:03:32]} a4 {[%clk 00:16:07]} {[%emt 00:01:13]} 25. Qd3 {[%clk 00:14:40]}
{[%emt 00:01:02]} Ncb4 {[%clk 00:15:28]} {[%emt 00:01:08]} 26. Qb1 {[%clk
00:14:53]} {[%emt 00:00:18]} Bb5 {[%clk 00:15:00]} {[%emt 00:00:58]} 27. Rc8+
{[%clk 00:13:57]} {[%emt 00:01:26]} Kg7 {[%clk 00:15:16]} {[%emt 00:00:13]} 28.
Qh1 {[%clk 00:11:43]} {[%emt 00:02:44]} Nf6 {[%clk 00:13:56]} {[%emt 00:01:51]}
29. Rxh7+ {[%clk 00:11:38]} {[%emt 00:00:35]} Nxh7 {[%clk 00:14:14]} {[%emt
00:00:12]} 30. Qh6+ {[%clk 00:12:03]} {[%emt 00:00:05]} 1-0

[Event "Elite Hotels Open 2024"]
[Site "Elite Stadshotellet, Kungsgatan 6, Vaxjo, Sweden"]
[Date "2024.02.10"]
[Round "6.8"]
[White "Crevatin, Leo"]
[Black "Frisk, Ellinor"]
[Result "1/2-1/2"]
[TimeControl "15 minutes + 5 seconds per move from move one (Round 1 - 4) / 90 minutes + 30 seconds per move from move one (Round 5 - 8)"]
[WhiteTitle "FM"]
[BlackTitle "WIM"]
[WhiteFideId "1726307"]
[BlackFideId "1708481"]
[WhiteElo "2303"]
[BlackElo "2141"]

1. d4 {[%clk 01:30:54]} {[%emt 00:00:02]} d5 {[%clk 01:29:57]} {[%emt
00:01:08]} 2. c4 {[%clk 01:31:01]} {[%emt 00:00:22]} c6 {[%clk 01:30:18]}
{[%emt 00:00:10]} 3. Nf3 {[%clk 01:31:24]} {[%emt 00:00:06]} Nf6 {[%clk
01:30:29]} {[%emt 00:00:19]} 4. Nbd2 {[%clk 01:30:42]} {[%emt 00:01:11]} Bf5
{[%clk 01:25:38]} {[%emt 00:05:22]} 5. Nh4 {[%clk 01:29:52]} {[%emt 00:01:20]}
Be6 {[%clk 01:21:18]} {[%emt 00:04:50]} 6. e3 {[%clk 01:25:19]} {[%emt
00:05:03]} g6 {[%clk 01:21:30]} {[%emt 00:00:19]} 7. Bd3 {[%clk 01:21:54]}
{[%emt 00:03:53]} Bg7 {[%clk 01:21:41]} {[%emt 00:00:20]} 8. O-O {[%clk
01:18:18]} {[%emt 00:04:06]} O-O {[%clk 01:22:08]} {[%emt 00:00:04]} 9. b4
{[%clk 01:12:15]} {[%emt 00:06:31]} a5 {[%clk 01:10:23]} {[%emt 00:12:16]} 10.
bxa5 {[%clk 01:09:56]} {[%emt 00:02:49]} c5 {[%clk 01:06:19]} {[%emt 00:04:35]}
11. Bb2 {[%clk 00:56:02]} {[%emt 00:14:24]} cxd4 {[%clk 00:58:02]} {[%emt
00:08:47]} 12. Bxd4 {[%clk 00:55:01]} {[%emt 00:01:29]} Qxa5 {[%clk 00:58:01]}
{[%emt 00:00:34]} 13. Nb3 {[%clk 00:51:57]} {[%emt 00:03:32]} Qc7 {[%clk
00:57:11]} {[%emt 00:01:20]} 14. cxd5 {[%clk 00:32:50]} {[%emt 00:19:38]} Bxd5
{[%clk 00:56:38]} {[%emt 00:01:02]} 15. Rc1 {[%clk 00:30:10]} {[%emt 00:03:10]}
Nc6 {[%clk 00:55:42]} {[%emt 00:01:26]} 16. Bb1 {[%clk 00:24:45]} {[%emt
00:05:55]} Rfd8 {[%clk 00:49:39]} {[%emt 00:06:33]} 17. Qe1 {[%clk 00:19:55]}
{[%emt 00:05:20]} e5 {[%clk 00:41:36]} {[%emt 00:08:33]} 18. Bb2 {[%clk
00:18:22]} {[%emt 00:02:02]} Ra4 {[%clk 00:31:52]} {[%emt 00:10:15]} 19. f3
{[%clk 00:13:36]} {[%emt 00:05:16]} Qb6 {[%clk 00:26:46]} {[%emt 00:05:37]} 20.
Kh1 {[%clk 00:11:31]} {[%emt 00:02:34]} Qb4 {[%clk 00:20:06]} {[%emt 00:07:11]}
21. e4 {[%clk 00:09:44]} {[%emt 00:02:17]} Bc4 {[%clk 00:17:24]} {[%emt
00:03:12]} 22. Bc3 {[%clk 00:06:32]} {[%emt 00:03:42]} Qb5 {[%clk 00:17:44]}
{[%emt 00:00:09]} 23. Rg1 {[%clk 00:06:16]} {[%emt 00:00:46]} Raa8 {[%clk
00:16:48]} {[%emt 00:01:27]} 24. Rc2 {[%clk 00:03:44]} {[%emt 00:03:01]} Bf8
{[%clk 00:16:44]} {[%emt 00:00:34]} 25. Rb2 {[%clk 00:02:38]} {[%emt 00:01:36]}
Qa6 {[%clk 00:16:35]} {[%emt 00:00:39]} 26. f4 {[%clk 00:01:47]} {[%emt
00:01:21]} Bd3 {[%clk 00:14:06]} {[%emt 00:03:00]} 27. Bxd3 {[%clk 00:00:45]}
{[%emt 00:01:32]} Qxd3 {[%clk 00:14:16]} {[%emt 00:00:19]} 28. Re2 {[%clk
00:00:40]} {[%emt 00:00:35]} Ra4 {[%clk 00:12:07]} {[%emt 00:02:39]} 29. Re3
{[%clk 00:00:40]} {[%emt 00:00:31]} Qa6 {[%clk 00:06:24]} {[%emt 00:06:12]} 30.
fxe5 {[%clk 00:00:40]} {[%emt 00:00:31]} Ng4 {[%clk 00:05:55]} {[%emt
00:00:58]} 31. Rg3 {[%clk 00:00:58]} {[%emt 00:00:12]} Rxe4 {[%clk 00:04:59]}
{[%emt 00:01:27]} 32. Qf1 {[%clk 00:00:42]} {[%emt 00:00:46]} Qxf1 {[%clk
00:03:05]} {[%emt 00:02:24]} 33. Rxf1 {[%clk 00:01:11]} {[%emt 00:00:01]} Nxh2
{[%clk 00:02:38]} {[%emt 00:00:56]} 34. Nxg6 {[%clk 00:01:09]} {[%emt
00:00:32]} hxg6 {[%clk 00:02:19]} {[%emt 00:00:50]} 35. Kxh2 {[%clk 00:01:35]}
{[%emt 00:00:03]} Nxe5 {[%clk 00:02:27]} {[%emt 00:00:22]} 36. Rh3 {[%clk
00:00:40]} {[%emt 00:01:25]} Rd3 {[%clk 00:01:40]} {[%emt 00:01:17]} 37. Rxd3
{[%clk 00:00:53]} {[%emt 00:00:17]} Nxd3 {[%clk 00:02:08]} {[%emt 00:00:02]} 38.
Rd1 {[%clk 00:01:05]} {[%emt 00:00:19]} Nf4 {[%clk 00:00:45]} {[%emt 00:01:52]}
39. Rd8 {[%clk 00:01:17]} {[%emt 00:00:16]} Ne2 {[%clk 00:01:10]} {[%emt
00:00:07]} 40. Bf6 {[%clk 00:01:00]} {[%emt 00:00:46]} Re6 {[%clk 00:01:01]}
{[%emt 00:00:40]} 41. Bh4 {[%clk 00:00:44]} {[%emt 00:00:47]} g5 {[%clk
00:00:33]} {[%emt 00:00:57]} 42. Bxg5 {[%clk 00:00:54]} {[%emt 00:00:20]} Re5
{[%clk 00:01:00]} {[%emt 00:00:04]} 43. Bh4 {[%clk 00:01:13]} {[%emt 00:00:09]}
Rh5 {[%clk 00:01:12]} {[%emt 00:00:19]} 44. g3 {[%clk 00:01:19]} {[%emt
00:00:24]} Kg7 {[%clk 00:01:35]} {[%emt 00:00:07]} 45. Kg2 {[%clk 00:01:26]}
{[%emt 00:00:22]} Nf4+ {[%clk 00:01:41]} {[%emt 00:00:26]} 46. Kf3 {[%clk
00:01:36]} {[%emt 00:00:19]} Ng6 {[%clk 00:01:57]} {[%emt 00:00:15]} 47. Kg4
{[%clk 00:01:29]} {[%emt 00:00:35]} Rb5 {[%clk 00:01:42]} {[%emt 00:00:47]} 48.
Nd4 {[%clk 00:01:43]} {[%emt 00:00:15]} Rb4 {[%clk 00:01:44]} {[%emt 00:00:30]}
49. Kh3 {[%clk 00:00:47]} {[%emt 00:01:25]} Nxh4 {[%clk 00:01:21]} {[%emt
00:00:53]} 50. gxh4 {[%clk 00:01:13]} {[%emt 00:00:04]} Bc5 {[%clk 00:01:43]}
{[%emt 00:00:08]} 51. Nf5+ {[%clk 00:01:31]} {[%emt 00:00:13]} Kf6 {[%clk
00:02:08]} {[%emt 00:00:03]} 52. Ng3 {[%clk 00:01:22]} {[%emt 00:00:39]} Bf2
{[%clk 00:01:36]} {[%emt 00:01:02]} 53. Rd3 {[%clk 00:01:18]} {[%emt 00:00:34]}
Kg7 {[%clk 00:00:46]} {[%emt 00:01:20]} 54. Rf3 {[%clk 00:01:08]} {[%emt
00:00:42]} Bxg3 {[%clk 00:00:54]} {[%emt 00:00:22]} 55. Rxg3+ {[%clk 00:01:19]}
{[%emt 00:00:19]} Kh6 {[%clk 00:01:16]} {[%emt 00:00:08]} 56. Rb3 {[%clk
00:01:25]} {[%emt 00:00:24]} Ra4 {[%clk 00:01:10]} {[%emt 00:00:36]} 57. Rxb7
{[%clk 00:01:27]} {[%emt 00:00:27]} Rxa2 {[%clk 00:01:34]} {[%emt 00:00:06]} 58.
Rxf7 {[%clk 00:01:51]} {[%emt 00:00:06]} Ra3+ {[%clk 00:01:39]} {[%emt
00:00:26]} 59. Kg4 {[%clk 00:02:15]} {[%emt 00:00:05]} Ra4+ {[%clk 00:01:57]}
{[%emt 00:00:13]} 60. Kg3 {[%clk 00:02:36]} {[%emt 00:00:08]} Ra3+ {[%clk
00:02:21]} {[%emt 00:00:07]} 61. Kg4 {[%clk 00:02:46]} {[%emt 00:00:20]} Ra4+
{[%clk 00:02:45]} {[%emt 00:00:07]} 62. Rf4 {[%clk 00:02:30]} {[%emt 00:00:44]}
Rxf4+ {[%clk 00:03:03]} {[%emt 00:00:13]} 63. Kxf4 {[%clk 00:02:56]} {[%emt
00:00:04]} Kh5 {[%clk 00:03:31]} {[%emt 00:00:03]} 64. Kg3 {[%clk 00:03:21]}
{[%emt 00:00:04]} Kh6 {[%clk 00:03:57]} {[%emt 00:00:04]} 65. Kg4 {[%clk
00:03:48]} {[%emt 00:00:02]} Kh7 {[%clk 00:04:24]} {[%emt 00:00:03]} 66. Kh5
{[%clk 00:04:14]} {[%emt 00:00:05]} Kh8 {[%clk 00:04:48]} {[%emt 00:00:06]} 67.
Kh6 {[%clk 00:04:39]} {[%emt 00:00:04]} Kg8 {[%clk 00:05:14]} {[%emt 00:00:04]}
68. h5 {[%clk 00:05:06]} {[%emt 00:00:03]} Kh8 {[%clk 00:05:41]} {[%emt
00:00:04]} 69. Kg6 {[%clk 00:05:34]} {[%emt 00:00:02]} Kg8 {[%clk 00:06:08]}
{[%emt 00:00:03]} 70. h6 {[%clk 00:06:01]} {[%emt 00:00:03]} Kh8 {[%clk
00:06:30]} {[%emt 00:00:08]} 71. h7 {[%clk 00:06:26]} {[%emt 00:00:04]} 1/2-1/2

[Event "Elite Hotels Open 2024"]
[Site "Elite Stadshotellet, Kungsgatan 6, Vaxjo, Sweden"]
[Date "2024.02.10"]
[Round "6.9"]
[White "Grahn, Vidar"]
[Black "Mejvik, Jacob"]
[Result "1-0"]
[TimeControl "15 minutes + 5 seconds per move from move one (Round 1 - 4) / 90 minutes + 30 seconds per move from move one (Round 5 - 8)"]
[WhiteFideId "1744780"]
[BlackFideId "1710621"]
[WhiteElo "2234"]
[BlackElo "2103"]

1. d4 {[%clk 01:30:56]} {[%emt 00:00:04]} d5 {[%clk 01:30:47]} {[%emt
00:00:13]} 2. c4 {[%clk 01:31:22]} {[%emt 00:00:04]} e6 {[%clk 01:31:13]}
{[%emt 00:00:04]} 3. Nf3 {[%clk 01:31:50]} {[%emt 00:00:03]} a6 {[%clk
01:31:11]} {[%emt 00:00:32]} 4. g3 {[%clk 01:31:29]} {[%emt 00:00:51]} dxc4
{[%clk 01:31:31]} {[%emt 00:00:10]} 5. Bg2 {[%clk 01:31:54]} {[%emt 00:00:04]}
Nc6 {[%clk 01:31:47]} {[%emt 00:00:14]} 6. e3 {[%clk 01:32:15]} {[%emt
00:00:09]} e5 {[%clk 01:32:02]} {[%emt 00:00:15]} 7. d5 {[%clk 01:31:48]}
{[%emt 00:00:57]} e4 {[%clk 01:32:26]} {[%emt 00:00:07]} 8. dxc6 {[%clk
01:30:30]} {[%emt 00:01:49]} Qxd1+ {[%clk 01:32:37]} {[%emt 00:00:18]} 9. Kxd1
{[%clk 01:30:58]} {[%emt 00:00:03]} exf3 {[%clk 01:32:45]} {[%emt 00:00:22]} 10.
Bxf3 {[%clk 01:31:11]} {[%emt 00:00:17]} b5 {[%clk 01:33:08]} {[%emt 00:00:07]}
11. Nc3 {[%clk 01:28:16]} {[%emt 00:03:24]} Nf6 {[%clk 01:33:23]} {[%emt
00:00:14]} 12. e4 {[%clk 01:26:03]} {[%emt 00:02:43]} Bc5 {[%clk 01:10:55]}
{[%emt 00:22:57]} 13. Ke2 {[%clk 01:25:06]} {[%emt 00:01:28]} O-O {[%clk
01:10:14]} {[%emt 00:01:12]} 14. Bg5 {[%clk 01:13:26]} {[%emt 00:12:09]} Ng4
{[%clk 01:04:50]} {[%emt 00:05:54]} 15. Bxg4 {[%clk 01:13:03]} {[%emt
00:00:53]} Bxg4+ {[%clk 01:05:17]} {[%emt 00:00:04]} 16. f3 {[%clk 01:13:24]}
{[%emt 00:00:08]} Be6 {[%clk 01:04:31]} {[%emt 00:01:16]} 17. Rhd1 {[%clk
01:11:35]} {[%emt 00:02:19]} f5 {[%clk 01:01:13]} {[%emt 00:03:49]} 18. e5
{[%clk 01:10:21]} {[%emt 00:01:44]} Rf7 {[%clk 00:51:33]} {[%emt 00:10:09]} 19.
Be3 {[%clk 01:08:59]} {[%emt 00:01:53]} Bf8 {[%clk 00:49:42]} {[%emt 00:02:20]}
20. a4 {[%clk 01:05:53]} {[%emt 00:03:36]} b4 {[%clk 00:46:52]} {[%emt
00:03:20]} 21. Nd5 {[%clk 01:05:51]} {[%emt 00:00:31]} Rd8 {[%clk 00:41:11]}
{[%emt 00:06:12]} 22. Nf6+ {[%clk 01:05:29]} {[%emt 00:00:52]} gxf6 {[%clk
00:41:39]} {[%emt 00:00:03]} 23. Rxd8 {[%clk 01:05:54]} {[%emt 00:00:05]} fxe5
{[%clk 00:35:02]} {[%emt 00:07:06]} 24. f4 {[%clk 01:04:27]} {[%emt 00:01:57]}
Kg7 {[%clk 00:30:42]} {[%emt 00:04:50]} 25. fxe5 {[%clk 01:03:07]} {[%emt
00:01:50]} Kg6 {[%clk 00:28:31]} {[%emt 00:02:41]} 26. Re8 {[%clk 01:01:13]}
{[%emt 00:02:23]} Bd5 {[%clk 00:27:56]} {[%emt 00:01:06]} 27. Rd1 {[%clk
01:00:47]} {[%emt 00:00:54]} Be4 {[%clk 00:27:03]} {[%emt 00:01:24]} 28. e6
{[%clk 01:00:53]} {[%emt 00:00:24]} Rf6 {[%clk 00:27:01]} {[%emt 00:00:32]} 29.
e7 {[%clk 01:01:16]} {[%emt 00:00:06]} Bg7 {[%clk 00:25:04]} {[%emt 00:02:28]}
30. Rg8 {[%clk 01:01:18]} {[%emt 00:00:27]} Re6 {[%clk 00:16:43]} {[%emt
00:08:52]} 31. Rd7 {[%clk 01:00:16]} {[%emt 00:01:31]} Bxc6 {[%clk 00:15:18]}
{[%emt 00:01:56]} 32. Rxg7+ {[%clk 01:00:24]} {[%emt 00:00:22]} Kf6 {[%clk
00:14:41]} {[%emt 00:01:07]} 33. Rxc7 {[%clk 01:00:39]} {[%emt 00:00:15]} Bxa4
{[%clk 00:13:09]} {[%emt 00:02:03]} 34. Kf2 {[%clk 01:00:44]} {[%emt 00:00:24]}
Re4 {[%clk 00:11:50]} {[%emt 00:01:50]} 35. Rxh7 {[%clk 01:00:48]} {[%emt
00:00:26]} Be8 {[%clk 00:11:58]} {[%emt 00:00:22]} 36. Rh6+ {[%clk 01:00:46]}
{[%emt 00:00:32]} 1-0